Departmental Area,Entity,Payment Date,Expense type,Expense Area,Supplier Name,Payment Reference,      Invoice Distribution Amount      ,Description,Supplier Type,Expenditure Type
UK Statistics Family,Office for National Statistics,02/05/2023,Exp - Purchase Of Goods/Services - Contractors,Testing,La International,264799,"11,415.11",Information Management Services,SME,Programme Expenditure
UK Statistics Family,Office for National Statistics,02/05/2023,Exp - Purchase Of Goods/Services - Contractors,Testing,La International,264799,"10,351.06",Information Management Services,SME,Programme Expenditure
UK Statistics Family,Office for National Statistics,02/05/2023,Exp - Purchase Of Goods/Services - Contractors,Security And Information Management Saim,La International,264799,"4,560.00",Information Management Services,SME,Programme Expenditure
UK Statistics Family,Office for National Statistics,02/05/2023,Exp - Purchase Of Goods/Services - Contractors,Data Architecture,LA FOSSE ASSOCIATES LIMITED,264805,"28,800.00",Information Management Services,Large,Programme Expenditure
UK Statistics Family,Office for National Statistics,02/05/2023,Other Goods And Services,REPROGRAPHICS,Canon UK Ltd,264811,"27,763.79",Equipment Hire,Large,Programme Expenditure
UK Statistics Family,Office for National Statistics,02/05/2023,Buildings Under Construction,Property Services,Faithful+Gould,264814,"39,600.00",Consultancy,SME,Programme Expenditure
UK Statistics Family,Office for National Statistics,03/05/2023,PPE - NON-PROPERTY (LEASED NON-PFI) - COST - ADDITIONS (AS LESSEE),IT Operations,Crown Hosting Data Centres Limited,265085,"63,065.30",Information Management Services,SME,Programme Expenditure
UK Statistics Family,Office for National Statistics,03/05/2023,Telecoms,IT Operations,Crown Hosting Data Centres Limited,265085,860.00,Information Management Services,SME,Programme Expenditure
UK Statistics Family,Office for National Statistics,03/05/2023,Hosting,IT Operations,Crown Hosting Data Centres Limited,265085,"1,720.00",Information Management Services,SME,Programme Expenditure
UK Statistics Family,Office for National Statistics,03/05/2023,Hosting,IT Operations,Clearvision-Cm,265087,"52,035.92",Information Management Services,SME,Programme Expenditure
UK Statistics Family,Office for National Statistics,03/05/2023,Exp - Purchase Of Goods/Services - IT Contractual Services,Digital Publishing,University of Durham,265089,"72,956.80",Statistical Services,Large,Programme Expenditure
UK Statistics Family,Office for National Statistics,03/05/2023,Other Goods And Services,Recruitment ,Cabinet Office,265099,460.8,Recruitment Services,Large,Programme Expenditure
UK Statistics Family,Office for National Statistics,03/05/2023,EXP - PURCHASE OF GOODS/SERVICES -  NON IT CONTRACTUAL PAYMENTS,Recruitment ,Cabinet Office,265099,"86,724.36",Recruitment Services,Large,Programme Expenditure
UK Statistics Family,Office for National Statistics,03/05/2023,EXP - PURCHASE OF GOODS/SERVICES - DATA ACQUISITION,Data As A Service,HMRC.,265100,"55,205.00",Data Acquisition,Large,Programme Expenditure
UK Statistics Family,Office for National Statistics,03/05/2023,IT (Owned) At Cost - Additions,IT Operations,BT PLC,265104,73438.38,Hardware Implementation ,Large,Programme Expenditure
UK Statistics Family,Office for National Statistics,04/05/2023,Exp - Purchase Of Goods/Services - Incentive Payments,Survey Management,Sodexo Motivation Solutions U.K. ltd,265233,976.56,Survey Response Incentive Vouchers,Large,Programme Expenditure
UK Statistics Family,Office for National Statistics,04/05/2023,Exp - Purchase Of Goods/Services - Incentive Payments,Survey Management,Sodexo Motivation Solutions U.K. ltd,265233,"1,202.14",Survey Response Incentive Vouchers,Large,Programme Expenditure
UK Statistics Family,Office for National Statistics,04/05/2023,Exp - Purchase Of Goods/Services - Incentive Payments,Survey Management,Sodexo Motivation Solutions U.K. ltd,265233,310.84,Survey Response Incentive Vouchers,Large,Programme Expenditure
UK Statistics Family,Office for National Statistics,04/05/2023,Exp - Purchase Of Goods/Services - Incentive Payments,Survey Management,Sodexo Motivation Solutions U.K. ltd,265233,"31,640.46",Survey Response Incentive Vouchers,Large,Programme Expenditure
UK Statistics Family,Office for National Statistics,04/05/2023,Exp - Purchase Of Goods/Services - Incentive Payments,Survey Management,Sodexo Motivation Solutions U.K. ltd,265233,1342.29,Survey Response Incentive Vouchers,Large,Programme Expenditure
UK Statistics Family,Office for National Statistics,04/05/2023,Exp - Purchase Of Goods/Services - Incentive Payments,Survey Management,Sodexo Motivation Solutions U.K. ltd,265233,753.35,Survey Response Incentive Vouchers,Large,Programme Expenditure
UK Statistics Family,Office for National Statistics,04/05/2023,Exp - Purchase Of Goods/Services - Incentive Payments,Survey Management,Sodexo Motivation Solutions U.K. ltd,265233,296.09,Survey Response Incentive Vouchers,Large,Programme Expenditure
UK Statistics Family,Office for National Statistics,04/05/2023,Exp - Permanent UK Staff - PRP Voucher Payments,ONS Corporate Funds,Edenred (UK Group) Limited,265234,"66,300.00",Performance Reward Vouchers,Large,Programme Expenditure
UK Statistics Family,Office for National Statistics,05/05/2023,Exp - Seconded UK Staff - Basic Salary,Analysis Microdata And Engagement,Ministry of Defence,265352,62050.61,Seconded Staff,Large,Programme Expenditure
UK Statistics Family,Office for National Statistics,05/05/2023,EXP - PURCHASE OF GOODS/SERVICES - DATA ACQUISITION,Data As A Service,HMRC.,265358,"87,835.91",Data Acquisition,Large,Programme Expenditure
UK Statistics Family,Office for National Statistics,09/05/2023,Exp - Purchase Of Goods And Services Consultants,Sustainability And Inequalities,Ricardo-AEA Ltd,265492,63942.36,Data Acquisition,SME,Programme Expenditure
UK Statistics Family,Office for National Statistics,09/05/2023,Exp - Purchase Of Goods And Services Consultants,2023 CENSUS DATA TRANSFORMATION,The Sensible Code Company,265495,"214,520.40",Statistical Services,SME,Programme Expenditure
UK Statistics Family,Office for National Statistics,09/05/2023,Exp - Purchase Of Goods/Services - Contractors,IT Operations,SmartSourcing Ltd,265496,"31,096.94",Information Management Services,SME,Programme Expenditure
UK Statistics Family,Office for National Statistics,09/05/2023,Rent Payable,Property Newport,Government Property Agency (GPA),265500,"394,145.00",Property Rent,Large,Programme Expenditure
UK Statistics Family,Office for National Statistics,10/05/2023,Travel And Subsistence,Corporate Centre,Corporate Travel Management ,265752,"41,874.18",Travel and Accommodation,SME,Programme Expenditure
UK Statistics Family,Office for National Statistics,10/05/2023,Postage,Survey Processing Centre,DHL Parcel Ltd,265754,88627.11,Postage Services,Large,Programme Expenditure
UK Statistics Family,Office for National Statistics,10/05/2023,Other Goods And Services,Office Of Chief Data And Information,Totaljobs Group Ltd,265760,"26,956.80",Recruitment Services,SME,Programme Expenditure
UK Statistics Family,Office for National Statistics,10/05/2023,Capital Major Works >25K,Property Newport,Orange box Limited,265764,"49,739.41",Office Furniture,SME,Programme Expenditure
UK Statistics Family,Office for National Statistics,10/05/2023,Other Goods And Services,PROPERTY LONDON 2MS,Orange box Limited,265764,"12,064.81",Office Furniture,SME,Programme Expenditure
UK Statistics Family,Office for National Statistics,11/05/2023,Exp - Purchase Of Goods/Services - Contractors,Testing,LA FOSSE ASSOCIATES LIMITED,265916,"2,940.00",Information Management Services,Large,Programme Expenditure
UK Statistics Family,Office for National Statistics,11/05/2023,Exp - Purchase Of Goods/Services - Contractors,Testing,LA FOSSE ASSOCIATES LIMITED,265916,"12,600.00",Information Management Services,Large,Programme Expenditure
UK Statistics Family,Office for National Statistics,11/05/2023,Exp - Purchase Of Goods/Services - Contractors,INTEGRATED DATA STRATEGY AND DELIVERY,LA FOSSE ASSOCIATES LIMITED,265916,"3,600.00",Information Management Services,Large,Programme Expenditure
UK Statistics Family,Office for National Statistics,11/05/2023,Exp - Purchase Of Goods/Services - Contractors,Data Architecture,LA FOSSE ASSOCIATES LIMITED,265916,"12,960.00",Information Management Services,Large,Programme Expenditure
UK Statistics Family,Office for National Statistics,11/05/2023,Exp - Purchase Of Goods/Services - Contractors,Data Architecture,LA FOSSE ASSOCIATES LIMITED,265916,"16,560.00",Information Management Services,Large,Programme Expenditure
UK Statistics Family,Office for National Statistics,11/05/2023,Exp - Purchase Of Goods/Services - Contractors,CDIO UNGP,LA FOSSE ASSOCIATES LIMITED,265916,"1,620.00",Information Management Services,Large,Programme Expenditure
UK Statistics Family,Office for National Statistics,11/05/2023,Exp - Purchase Of Goods/Services - Contractors,Digital Delivery,LA FOSSE ASSOCIATES LIMITED,265916,"15,480.00",Information Management Services,Large,Programme Expenditure
UK Statistics Family,Office for National Statistics,12/05/2023,Capital Major Works >25K,Property Titchfield,Vinci Construction UK Limited,266005,"252,000.00",Facilities Mangement Services,Large,Programme Expenditure
UK Statistics Family,Office for National Statistics,12/05/2023,Travel And Subsistence,Corporate Centre,Corporate Travel Management ,266006,"28,022.26",Travel and Accommodation,SME,Programme Expenditure
UK Statistics Family,Office for National Statistics,15/05/2023,EXP - PURCHASE OF GOODS/SERVICES - DATA ACQUISITION,Analysis Microdata And Engagement,VISA EUROPE LIMITED,266126,"194,400.00",Data Acquisition,Large,Programme Expenditure
UK Statistics Family,Office for National Statistics,16/05/2023,Travel And Subsistence,Corporate Centre,Corporate Travel Management ,266359,"31,079.86",Travel and Accommodation,SME,Programme Expenditure
UK Statistics Family,Office for National Statistics,16/05/2023,Surveys,Crime Statistics,Kantar Public UK Ltd.,266362,"337,199.90",Statistical Services,SME,Programme Expenditure
UK Statistics Family,Office for National Statistics,16/05/2023,Exp - Purchase Of Goods/Services - IT Contractual Services,PARTNERSHIP DEVELOPMENT,CGI IT UK Limited,266363,"317,243.45",Information Management Services,Large,Programme Expenditure
UK Statistics Family,Office for National Statistics,16/05/2023,Travel And Subsistence,PARTNERSHIP DEVELOPMENT,CGI IT UK Limited,266363,560.07,Information Management Services,Large,Programme Expenditure
UK Statistics Family,Office for National Statistics,17/05/2023,"ICT Outsourcing, Maintenance And Support",IT Operations,Oracle Corporation UK Ltd,266504,"71,501.33",Software Support Services,Large,Programme Expenditure
UK Statistics Family,Office for National Statistics,17/05/2023,Other Goods And Services,Property Titchfield,Fareham Borough Council,266505,"536,763.50",Business Property Rates,Large,Programme Expenditure
UK Statistics Family,Office for National Statistics,17/05/2023,Telecoms,IT Operations,Cdw Limited,266507,"35,536.80",Information Management Services,Large,Programme Expenditure
UK Statistics Family,Office for National Statistics,17/05/2023,Marketing & Media,Divisional Management,Britain Thinks ,266509,36000,Qualitative Research,SME,Programme Expenditure
UK Statistics Family,Office for National Statistics,18/05/2023,Telecoms,IT Operations,Freedom Communications (UK) Ltd,266598,"51,357.18",Telecommunications,Large,Programme Expenditure
UK Statistics Family,Office for National Statistics,19/05/2023,"ICT Outsourcing, Maintenance And Support",Researcher Support And Data Access ,Equiniti-TopLevel,266708,"84,564.00",Information Management Services,SME,Programme Expenditure
UK Statistics Family,Office for National Statistics,19/05/2023,Prepayments - Titchfield Postage Meter,Print & Post,Pitney Bowes Ltd,266709,27534.42,Postage Services,Large,Programme Expenditure
UK Statistics Family,Office for National Statistics,22/05/2023,Capital Major Works >25K,Property Newport,Vinci Construction UK Limited,266858,"65,239.20",Facilities Mangement Services,Large,Programme Expenditure
UK Statistics Family,Office for National Statistics,22/05/2023,Postage,REPROGRAPHICS,Pitney Bowes Ltd,266867,"168,338.01",Postage Services,Large,Programme Expenditure
UK Statistics Family,Office for National Statistics,23/05/2023,Exp - Purchase Of Goods And Services Consultants,Policy Secretariat,Parity Resources Limited,267087,"1,542.84",Information Management Services,Large,Programme Expenditure
UK Statistics Family,Office for National Statistics,23/05/2023,Exp - Short-Term Contract & Agency Staff - Full Cost,Finance,Parity Resources Limited,267087,"1,056.72",Information Management Services,Large,Programme Expenditure
UK Statistics Family,Office for National Statistics,23/05/2023,Exp - Short-Term Contract & Agency Staff - Full Cost,Interviewer Management FiF,Parity Resources Limited,267087,"1,309.68",Information Management Services,Large,Programme Expenditure
UK Statistics Family,Office for National Statistics,23/05/2023,Exp - Short-Term Contract & Agency Staff - Full Cost,Interviewer Management FiF,Parity Resources Limited,267087,"20,731.18",Information Management Services,Large,Programme Expenditure
UK Statistics Family,Office for National Statistics,23/05/2023,Exp - Purchase Of Goods/Services - Census Field Costs,Interviewer Management FiF,Parity Resources Limited,267087,166.98,Information Management Services,Large,Programme Expenditure
UK Statistics Family,Office for National Statistics,23/05/2023,Exp - Purchase Of Goods/Services - Census Field Costs,Interviewer Management FiF,Parity Resources Limited,267087,305.58,Information Management Services,Large,Programme Expenditure
UK Statistics Family,Office for National Statistics,24/05/2023,Exp - Purchase Of Goods/Services - Contractors,Data Architecture,SmartSourcing Ltd,267297,"29,132.36",Information Management Services,SME,Programme Expenditure
UK Statistics Family,Office for National Statistics,25/05/2023,Training & Development,Learning And Capability,KPMG LLP,267430,"31,116.90",Training and Educational,SME,Programme Expenditure
UK Statistics Family,Office for National Statistics,25/05/2023,Travel And Subsistence,Corporate Centre,Corporate Travel Management ,267431,"45,622.21",Travel and Accommodation,SME,Programme Expenditure
UK Statistics Family,Office for National Statistics,25/05/2023,Exp - Purchase Of Goods/Services - IT Contractual Services,Digital Delivery,Armakuni Ltd,267443,"50,160.00",Information Management Services,SME,Programme Expenditure
UK Statistics Family,Office for National Statistics,26/05/2023,Buildings Under Construction,Property Newport,Vinci Construction UK Limited,267571,"216,000.00",Facilities Mangement Services,Large,Programme Expenditure
UK Statistics Family,Office for National Statistics,26/05/2023,Buildings Under Construction,Property Titchfield,Vinci Construction UK Limited,267571,"172,726.34",Facilities Mangement Services,Large,Programme Expenditure
UK Statistics Family,Office for National Statistics,26/05/2023,Telecoms,IT Operations,Cdw Limited,267578,"35,536.80",Information Management Services,Large,Programme Expenditure
UK Statistics Family,Office for National Statistics,05/05/2023,Exp - Purchase Of Goods/Services - Incentive Payments,Covid Infection Survey,Sodexo Motivation Solutions U.K. ltd,30004120,"137,914.68",Survey Response Incentive Vouchers,Large,Programme Expenditure
UK Statistics Family,Office for National Statistics,11/05/2023,Exp - Purchase Of Goods/Services - Incentive Payments,Covid Infection Survey,Sodexo Motivation Solutions U.K. ltd,30004130,"109,758.43",Survey Response Incentive Vouchers,Large,Programme Expenditure
UK Statistics Family,Office for National Statistics,11/05/2023,Stationery,Lodgecard,Royal Bank of Scotland,30004131,"1,061.17",Multiple Procurement Card Purchases  - Stationery ,Large,Programme Expenditure
UK Statistics Family,Office for National Statistics,11/05/2023,Other Goods And Services,GPC,Royal Bank of Scotland,30004131,"49,394.38",Multiple Procurement Card Purchases - other goods/services  ,Large,Programme Expenditure
UK Statistics Family,Office for National Statistics,11/05/2023,Travel And Subsistence,Car Hire,Royal Bank of Scotland,30004131,"18,136.95",Multiple Procurement Card Purchases - Vehicle Hire  ,Large,Programme Expenditure
UK Statistics Family,Office for National Statistics,18/05/2023,Exp - Purchase Of Goods/Services - Incentive Payments,Covid Infection Survey,Sodexo Motivation Solutions U.K. ltd,30004137,"81,661.35",Survey Response Incentive Vouchers,Large,Programme Expenditure
UK Statistics Family,Office for National Statistics,19/05/2023,Electricity,Property Titchfield,Edf Energy,30004138,28734.76,Utilities,Large,Programme Expenditure
UK Statistics Family,Office for National Statistics,19/05/2023,Electricity,Property Newport,Edf Energy,30004139,"33,881.34",Utilities,Large,Programme Expenditure
UK Statistics Family,Office for National Statistics,23/05/2023,End User Software And Hardware,IT Operations,O'Reilly Media Inc,30004145,"31,065.00",Software Licenses,Large,Programme Expenditure
UK Statistics Family,Office for National Statistics,23/05/2023,End User Software And Hardware,IT Operations,Pluralsight,30004147,"68,071.51",Software Licenses,Large,Programme Expenditure
UK Statistics Family,Office for National Statistics,31/05/2023,Telecoms,IT Operations,Bt Global Services,30004156,"29,869.85",Telecommunications,Large,Programme Expenditure
UK Statistics Family,Office for National Statistics,31/05/2023,Surveys,Crime Statistics,Kantar Public UK Ltd.,30004157,"807,521.74",Statistical Services,SME,Programme Expenditure
UK Statistics Family,Office for National Statistics,31/05/2023,Surveys,Crime Statistics,Kantar Public UK Ltd.,30004157,"-254,577.00",Statistical Services,SME,Programme Expenditure
UK Statistics Family,Office for National Statistics,31/05/2023,Surveys,Prices Division,Kantar Public UK Ltd.,30004157,"8,686.66",Statistical Services,SME,Programme Expenditure
UK Statistics Family,Office for National Statistics,31/05/2023,EXP - PURCHASE OF GOODS/SERVICES - DATA ACQUISITION,Prices Division,Kantar Public UK Ltd.,30004157,371799,Statistical Services,SME,Programme Expenditure
UK Statistics Family,Office for National Statistics,31/05/2023,Surveys,Business Outputs And Developments,Iff Research,30004158,72548.7,Statistical Services,Large,Programme Expenditure
,,,,,,,"6,208,667.87",,,
